fUST/lending_fUST_20241211
["ID","MTS","AMOUNT","RATE_DAILY","PERIOD"]
[344999203,1733913068107,-151.0,0.000299,7]
[344999204,1733913068121,-151.0,0.000299,16]
[344999205,1733913068136,-151.0,0.000299,7]
[344999206,1733913068150,-151.0,0.000299,7]
[344999207,1733913068164,-272.108489,0.000299,7]
[344999208,1733913068178,-272.108489,0.000299,7]
[344999209,1733913068192,-151.0,0.000299,7]
[344999210,1733913068206,-284.453289,0.000299,7]
[344999211,1733913068220,-151.0,0.000299,7]
[344999212,1733913068235,-733.04344,0.000299,7]
[344999213,1733913068249,-733.04344,0.000299,7]
[344999214,1733913068263,-151.0,0.000299,7]
[344999215,1733913068278,-558.389745,0.000299,7]
[344999216,1733913068293,-558.389745,0.000299,7]
[344999217,1733913068307,-151.206,0.00029919,2]
[344999218,1733913068321,-150.786,0.00029919,2]
[344999219,1733913068335,-150.0,0.00029919,2]
[344999220,1733913068351,-500.0,0.00029922,2]
[344999221,1733913068365,-500.0,0.00029981,2]
[344999222,1733913068378,-1500.0,0.00029984,5]
[344999223,1733913068393,-581.09,0.0003,2]
[344999224,1733913068408,-2014.53488776,0.0003,2]
[344999225,1733913068423,-207.65962925,0.0003,10]
[344999226,1733913068437,-1009.16718529,0.0003,30]
[344999227,1733913068451,-300.0,0.0003,14]
[344999228,1733913068466,-170.6895,0.0003,2]
[344999229,1733913068482,-1000.0,0.0003,2]
[344999230,1733913068498,-58127.20314405,0.0003,2]
[344999231,1733913068513,-235.0,0.0003,2]
[344999232,1733913068527,-1656.6155824,0.00030012,2]
[344999233,1733913068541,-500.0,0.00030025,2]
[344999234,1733913068629,-151.0,0.00030028,7]
[344999235,1733913068643,-2500.0,0.00030029,3]
[344999236,1733913068652,-687.45241524,0.00030029,3]
[344999237,1733913068662,-500.0,0.00030031,2]
[344999238,1733913068672,-39859.000003,0.000301,7]
[344999239,1733913068681,-151.0,0.000301,7]
[344999240,1733913068691,-151.0,0.000301,7]
[344999241,1733913068700,-272.108489,0.000301,7]
[344999242,1733913068709,-272.108489,0.000301,7]
[344999243,1733913068719,-151.0,0.000301,7]
[344999244,1733913068728,-151.0,0.000301,7]
[344999245,1733913068746,-733.04344,0.000301,7]
[344999246,1733913068756,-733.04344,0.000301,7]
[344999247,1733913068765,-151.0,0.000301,7]
[344999248,1733913068779,-558.389745,0.000301,7]
[344999249,1733913068788,-558.38975112,0.000301,7]
[344999250,1733913068798,-153.53,0.000301,31]
[344999251,1733913068808,-500.0,0.00030112,2]
[344999252,1733913068821,-2683.87443279,0.00030136,7]
[344999253,1733913068831,-158.42091543,0.00030157,30]
[344999254,1733913068840,-302.75782099,0.0003016,2]
[344999255,1733913068850,-500.0,0.00030167,2]
[344999256,1733913068860,-501.06509407,0.00030174,2]
[344999257,1733913068870,-150.371,0.00030193,7]
[344999258,1733913068879,-1656.6155824,0.00030193,2]
[344999259,1733913068890,-151.0,0.00030233,7]
[344999260,1733913068900,-500.0,0.00030243,2]
[344999261,1733913068909,-500.0,0.00030255,2]
[344999262,1733913068919,-500.0,0.00030259,2]
[344999263,1733913068929,-500.0,0.00030272,2]
[344999264,1733913068939,-500.0,0.00030277,2]
[344999265,1733913068949,-500.0,0.00030301,2]
[344999266,1733913068959,-160.0,0.00030349,3]
[344999267,1733913068968,-285.13364057,0.00030349,5]
[344999268,1733913068977,-1656.6155824,0.00030375,2]
[344999269,1733913068987,-275.236993,0.000304,2]
[344999270,1733913068996,-500.0,0.00030417,2]
[344999271,1733913069006,-500.0,0.00030417,2]
[344999272,1733913069015,-501.63109021,0.00030421,5]
[344999273,1733913069025,-162.01523512,0.00030421,5]
[344999274,1733913069034,-1000.0,0.00030421,5]
[344999275,1733913069043,-1000.0,0.00030421,5]
[344999276,1733913069052,-151.0,0.00030437,7]
[344999277,1733913069061,-500.0,0.0003045,2]
[344999278,1733913069071,-302.12285814,0.0003045,4]
[344999279,1733913069080,-500.0,0.00030458,2]
[344999280,1733913069089,-500.0,0.00030477,2]
[344999281,1733913069099,-500.0,0.0003049,2]
[344999282,1733913069108,-15119.62867677,0.000305,2]
[344999283,1733913069116,-15119.62867675,0.000305,2]
[344999284,1733913069126,-15119.62867675,0.000305,2]
[344999285,1733913069135,-15119.62867675,0.000305,2]
[344999286,1733913069144,-500.0,0.000305,2]
[344999287,1733913069154,-40754.34264337,0.000305,15]
[344999288,1733913069163,-151.0,0.000305,7]
[344999289,1733913069172,-151.0,0.000305,7]
[344999290,1733913069182,-151.0,0.000305,7]
[344999291,1733913069192,-272.108489,0.000305,7]
[344999292,1733913069201,-272.108491,0.000305,7]
[344999293,1733913069210,-151.0,0.000305,7]
[344999294,1733913069219,-733.04344,0.000305,7]
[344999295,1733913069228,-733.043433,0.000305,7]
[344999296,1733913069239,-500.0,0.00030528,2]
[344999297,1733913069248,-446.266,0.0003053,120]
[344999298,1733913069257,-500.0,0.00030541,2]
[344999299,1733913069266,-1656.6155824,0.00030557,2]
[344999300,1733913069275,-500.0,0.0003056,2]
[344999301,1733913069285,-158.36732543,0.00030562,2]
[344999302,1733913069295,-500.0,0.00030567,2]
[344999303,1733913069305,-500.0,0.00030567,2]
[344999304,1733913069315,-1000.0,0.00030573,2]
[344999305,1733913069324,-9705.15108145,0.000306,10]
[344999306,1733913069334,-500.0,0.00030606,2]
[344999307,1733913069344,-214.03658332,0.00030621,10]
[344999308,1733913069357,-150.15,0.00030621,10]
[344999309,1733913069367,-500.0,0.00030621,10]
[344999310,1733913069378,-150.15,0.00030621,10]
[344999311,1733913069388,-150.15,0.00030621,10]
[344999312,1733913069397,-150.15,0.00030621,10]
[344999313,1733913069407,-150.15,0.00030621,10]
[344999314,1733913069417,-150.15,0.00030621,10]
[344999315,1733913069426,-152.88124221,0.00030621,10]
[344999316,1733913069435,-500.0,0.00030621,10]
[344999317,1733913069444,-500.0,0.00030621,10]
[344999318,1733913069454,-249.31,0.00030621,10]
[344999319,1733913069464,-152.66641748,0.00030621,10]
[344999320,1733913069473,-151.0,0.00030635,7]
[344999321,1733913069485,-151.0,0.00030642,7]
[344999322,1733913069494,-1000.0,0.00030643,3]
[344999323,1733913069503,-151.0,0.00030645,7]
[344999324,1733913069512,-242.606882,0.00030645,7]
[344999325,1733913069521,-219423.73242668,0.00030662,10]
[344999326,1733913346930,204.0,0.00022,2]
[344999327,1733913401996,616.65,0.00026,60]
[344999328,1733913713005,180.860045,0.00013973,2]
[344999329,1733913713198,180.860045,0.00020447,2]
[344999379,1733914239001,-802.57767381,0.00023485,2]
[344999380,1733914239010,-1393.55707973,0.00023585,2]
[344999381,1733914239020,-520.4971582,0.00025655,2]
[344999382,1733914239030,-213.894179,0.00025687,2]
[344999383,1733914239039,-172.221283,0.00026044,2]
[344999384,1733914239048,-213.894179,0.00026637,2]
[344999385,1733914239058,-151.0,0.00026787,7]
[344999386,1733914239068,-302.9880957,0.00026806,11]
[344999387,1733914239078,-258.3368012,0.00026877,2]
[344999388,1733914239088,-953.10297,0.00026912,2]
[344999389,1733914239098,-180.860045,0.00026921,2]
[344999390,1733914239108,-300.0,0.00027064,2]
[344999391,1733914239118,-2897.56561091,0.00027065,2]
[344999535,1733914347719,160.0,0.00022,2]
[344999536,1733914613126,237.765658,0.00013973,2]
[344999537,1733914613347,237.765658,0.00020447,2]
[344999538,1733914801084,4628.6,0.0003,120]
[344999540,1733914877764,2883.98809008,0.0002,2]
[344999548,1733915080571,371.4,0.00030625,120]
[344999586,1733915432827,-172.221283,0.00024329,2]
[344999588,1733915432837,-3835.5138006,0.00024491,2]
[344999590,1733915432847,-160.420634,0.00024503,2]
[344999592,1733915432857,-1275.6823822,0.00024639,2]
[344999594,1733915432867,-300.0,0.00025204,2]
[344999596,1733915432877,-1138.34922735,0.00025205,2]
[344999598,1733915432888,-500.0,0.00025205,2]
[344999600,1733915432898,-500.0,0.00025205,2]
[344999602,1733915432908,-500.0,0.00025205,2]
[344999604,1733915432918,-500.0,0.00025205,2]
[344999606,1733915432928,-500.0,0.00025205,2]
[344999608,1733915432938,-500.0,0.00025205,2]
[344999610,1733915432947,-500.0,0.00025205,2]
[344999612,1733915432957,-191.47097943,0.00025205,2]
[344999614,1733915432967,-1697.8080695,0.00025296,2]
[344999616,1733915432976,-160.420634,0.00025712,2]
[344999618,1733915432986,-154.13537472,0.0002581,2]
[344999620,1733915432996,-68006.79517167,0.0002591,2]
[344999622,1733915433008,-2131.45573571,0.0002591,2]
[344999827,1733915438784,-21893.0035187,0.0002591,2]
[344999828,1733915438796,-1617.77337507,0.0002591,2]
[344999829,1733915438806,-595.62304797,0.0002591,2]
[344999830,1733915438816,-21567.34702408,0.00025911,2]
[344999831,1733915438827,-3332.65297592,0.00025911,2]
[344999832,1733915438837,-195.95724723,0.00025986,2]
[344999833,1733915438849,-54.04275277,0.00025986,2]
[344999834,1733915438859,-527.61224722,0.00026578,2]
[344999928,1733915509169,248.673876,0.00013973,2]
[344999929,1733915509383,248.673876,0.00020447,2]
[344999930,1733915548811,160.0,0.00022,2]
[344999935,1733916113773,431.72204566,0.00022,2]
[344999947,1733916403014,223.806488,0.00013973,2]
[344999948,1733916403246,223.806488,0.00020447,2]
[344999955,1733916518878,193.17499,0.00020377,2]
[344999992,1733916632065,-264.72954649,0.00024633,2]
[345000018,1733916632315,-2654.89656394,0.00024633,2]
[345000034,1733916638050,-336.32995687,0.00024633,2]
[345000035,1733916638060,-169.735425,0.00024668,2]
[345000036,1733916638071,-811.32717986,0.000249,2]
[345000037,1733916638082,-4709.7902009,0.000249,2]
[345000038,1733916638091,-250.0,0.00024901,2]
[345000039,1733916638101,-500.0,0.00024973,2]
[345000040,1733916638110,-500.0,0.00024973,2]
[345000041,1733916638121,-172.40839878,0.00024973,2]
[345000042,1733916638130,-500.744659,0.00024973,2]
[345000043,1733916638141,-500.0,0.00024973,2]
[345000044,1733916638150,-500.7026176,0.00024973,2]
[345000045,1733916638159,-500.0,0.00024973,2]
[345000046,1733916638169,-500.0,0.00024973,2]
[345000047,1733916638178,-605.73915835,0.00024973,2]
[345000048,1733916638190,-500.0,0.00024973,2]
[345000049,1733916638201,-300.0,0.00024989,2]
[345000050,1733916638210,-500.0,0.00024989,2]
[345000051,1733916638221,-500.0,0.00024989,2]
[345000052,1733916638331,-500.0,0.00024989,2]
[345000053,1733916638344,-500.0,0.00024989,2]
[345000054,1733916638354,-500.0,0.00024989,2]
[345000055,1733916638364,-500.0,0.00024989,2]
[345000056,1733916638373,-500.0,0.00024989,2]
[345000057,1733916638383,-500.0,0.00024989,2]
[345000058,1733916638392,-331.5077871,0.00024989,2]
[345000059,1733916638402,-500.0,0.00024989,2]
[345000060,1733916638413,-500.0,0.00024989,2]
[345000061,1733916638423,-500.0,0.00024989,2]
[345000062,1733916638432,-500.0,0.00024989,2]
[345000063,1733916638442,-500.0,0.00024989,2]
[345000064,1733916638452,-500.0,0.00024989,2]
[345000065,1733916638462,-271.67544987,0.00024989,2]
[345000066,1733916638576,-228.32455013,0.00024989,2]
[345000067,1733916638587,-500.0,0.00024989,2]
[345000068,1733916638597,-500.0,0.00024989,2]
[345000069,1733916638606,-500.0,0.00024989,2]
[345000070,1733916638615,-500.0,0.00024989,2]
[345000071,1733916638624,-500.0,0.00024989,2]
[345000072,1733916638633,-500.0,0.00024989,2]
[345000073,1733916638642,-500.0,0.00024989,2]
[345000074,1733916638651,-500.0,0.00024989,2]
[345000075,1733916638660,-500.0,0.00024989,2]
[345000076,1733916638669,-500.0,0.00024989,2]
[345000077,1733916638679,-500.0,0.00024989,2]
[345000078,1733916638688,-592.18012008,0.00024989,2]
[345000079,1733916638697,-500.0,0.00024989,2]
[345000080,1733916638706,-500.0,0.00024989,2]
[345000081,1733916638716,-500.0,0.00024989,2]
[345000082,1733916638726,-500.0,0.00024989,2]
[345000083,1733916638736,-500.0,0.00024989,2]
[345000084,1733916638747,-500.0,0.00024989,2]
[345000085,1733916638756,-279.37392525,0.00024989,2]
[345000086,1733916638769,-220.62607475,0.00024989,2]
[345000087,1733916638779,-500.0,0.00024989,2]
[345000088,1733916638788,-295.53412446,0.00024989,2]
[345000089,1733916638798,-500.0,0.00024989,2]
[345000090,1733916638808,-500.0,0.00024989,2]
[345000091,1733916638822,-500.0,0.00024989,2]
[345000092,1733916638831,-500.0,0.00024989,2]
[345000093,1733916638841,-500.0,0.00024989,2]
[345000094,1733916638850,-500.0,0.00024989,2]
[345000095,1733916638860,-298.68937183,0.00024989,2]
[345000096,1733916638872,-301.31062817,0.00024989,2]
[345000097,1733916638882,-500.0,0.00024989,2]
[345000098,1733916638892,-500.0,0.00024989,2]
[345000099,1733916638901,-500.0,0.00024989,2]
[345000100,1733916638910,-500.0,0.00024989,2]
[345000101,1733916638920,-500.0,0.00024989,2]
[345000102,1733916638932,-500.0,0.00024989,2]
[345000103,1733916638942,-500.0,0.00024989,2]
[345000104,1733916638951,-67.80447551,0.00024989,2]
[345000105,1733916638967,-432.19552449,0.00024989,2]
[345000106,1733916638979,-500.0,0.00024989,2]
[345000107,1733916638989,-500.0,0.00024989,2]
[345000108,1733916638999,-500.0,0.00024989,2]
[345000109,1733916639009,-431.35075091,0.00024989,2]
[345000110,1733916639020,-500.0,0.00024989,2]
[345000111,1733916639030,-500.0,0.00024989,2]
[345000112,1733916639041,-500.0,0.00024989,2]
[345000113,1733916639052,-316.43989283,0.00024989,2]
[345000114,1733916639062,-500.0,0.00024989,2]
[345000115,1733916639071,-500.0,0.00024989,2]
[345000116,1733916639081,-500.0,0.00024989,2]
[345000117,1733916639091,-500.0,0.00024989,2]
[345000118,1733916639100,-500.0,0.00024989,2]
[345000119,1733916639110,-500.0,0.00024989,2]
[345000120,1733916639120,-500.0,0.00024989,2]
[345000121,1733916639129,-500.0,0.00024989,2]
[345000122,1733916639139,-500.0,0.00024989,2]
[345000123,1733916639150,-500.0,0.00024989,2]
[345000124,1733916639160,-500.0,0.00024989,2]
[345000125,1733916639171,-500.0,0.00024989,2]
[345000126,1733916639183,-500.0,0.00024989,2]
[345000127,1733916639194,-500.0,0.00024989,2]
[345000128,1733916639204,-500.0,0.00024989,2]
[345000129,1733916639215,-500.0,0.00024989,2]
[345000130,1733916639226,-500.0,0.00024989,2]
[345000131,1733916639236,-500.0,0.00024989,2]
[345000132,1733916639245,-500.0,0.00024989,2]
[345000133,1733916639255,-500.0,0.00024989,2]
[345000134,1733916639264,-500.0,0.00024989,2]
[345000135,1733916639275,-500.0,0.00024989,2]
[345000136,1733916639285,-500.0,0.00024989,2]
[345000137,1733916639300,-500.0,0.00024989,2]
[345000138,1733916639309,-500.0,0.00024989,2]
[345000139,1733916639319,-500.0,0.00024989,2]
[345000140,1733916639329,-116000.86196034,0.0002499,2]
[345000141,1733916639339,-389.67489088,0.0002499,2]
[345000142,1733916639350,-296510.30919703,0.0002499,5]
[345000143,1733916639360,-431.72204566,0.00025,2]
[345000144,1733916639371,-284.5457636,0.00025,5]
[345000145,1733916639380,-192.168254,0.00025078,2]
[345000146,1733916639390,-517.89693697,0.00025521,2]
[345000147,1733916639400,-1000.0,0.00025521,2]
[345000148,1733916639410,-500.0,0.00025521,2]
[345000149,1733916639420,-432.54286483,0.00025521,2]
[345000150,1733916639430,-811.32717986,0.00025705,2]
[345000151,1733916639439,-4240.4497445,0.00025789,2]
[345000152,1733916639447,-1524.4270607,0.00025813,2]
[345000153,1733916639456,-2228.22051347,0.00025999,3]
[345000154,1733916639465,-280.92454483,0.00025999,2]
[345000156,1733916639475,-292.81009685,0.00025999,2]
[345000159,1733916639485,-500.0,0.00025999,2]
[345000162,1733916639495,-205.67733054,0.00025999,2]
[345000163,1733916639506,-15000.0,0.00026,2]
[345000165,1733916639516,-10628.932431,0.00026,30]
[345000167,1733916639525,-192.168254,0.00026005,2]
[345000168,1733916639535,-4709.7902009,0.00026309,2]
[345000170,1733916639549,-150.0,0.00026445,2]
[345000171,1733916639559,-811.32717986,0.0002651,2]
[345000172,1733916639568,-500.0,0.00026522,2]
[345000173,1733916639578,-9288.25465983,0.00026543,2]
[345000174,1733916639589,-223.806488,0.00026921,2]
[345000175,1733916639598,-192.168254,0.00026933,2]
[345000176,1733916639608,-740.636062,0.00026995,2]
[345000177,1733916639618,-186.869,0.00027065,15]
[345000178,1733916639627,-811.32717986,0.00027315,2]
[345000179,1733916639637,-420.0,0.00027488,2]
[345000180,1733916639647,-186.513266,0.00027556,2]
[345000181,1733916639657,-227.8775829,0.00027671,2]
[345000182,1733916639667,-4709.7902009,0.00027718,2]
[345000183,1733916639678,-192.168254,0.00027861,2]
[345000184,1733916639688,-811.32717986,0.00028121,2]
[345000185,1733916639698,-306.0,0.00028192,30]
[345000186,1733916639708,-454.4568209,0.00028192,30]
[345000187,1733916639717,-192.168254,0.00028789,2]
[345000188,1733916639727,-1502.43128611,0.00028878,2]
[345000189,1733916639738,-2110.55667966,0.00029,14]
[345000190,1733916639748,-433.875,0.0002911,2]
[345000191,1733916639757,-4709.7902009,0.00029127,2]
[345000192,1733916639767,-150.5,0.0002939,120]
[345000193,1733916639776,-186.513266,0.00029616,2]
[345000195,1733916639786,-765.0,0.00029671,30]
[345000197,1733916639798,-150.662,0.00029683,2]
[345000198,1733916639809,-533.0,0.00029683,2]
[345000199,1733916639818,-2370.0,0.00029683,2]
[345000200,1733916639828,-2163.0,0.00029683,2]
[345000201,1733916639838,-666.0,0.00029772,2]
[345000203,1733916639847,-500.0,0.000298,31]
[345000205,1733916639857,-5696.03276528,0.000298,120]
[345000206,1733916639866,-500.0,0.00029857,7]
[345000208,1733916639875,-160.0,0.00029862,10]
[345000210,1733916639885,-160.0,0.00029862,10]
[345000212,1733916639895,-500.0,0.00029862,2]
[345000213,1733916639905,-500.0,0.00029862,2]
[345000214,1733916639915,-500.0,0.00029862,2]
[345000215,1733916639925,-500.0,0.00029862,7]
[345000216,1733916639935,-500.0,0.00029863,7]
[345000217,1733916639945,-500.0,0.00029863,7]
[345000218,1733916639955,-500.0,0.00029863,7]
[345000219,1733916639965,-500.0,0.00029863,7]
[345000220,1733916639977,-197.15472551,0.00029863,7]
[345000221,1733916639989,-549.43992422,0.00029863,7]
[345000222,1733916639998,-260.58897869,0.00029863,7]
[345000223,1733916640009,-500.0,0.00029863,7]
[345000225,1733916640019,-500.0,0.00029863,7]
[345000227,1733916640029,-503.13558189,0.00029863,7]
[345000229,1733916640039,-500.0,0.00029863,7]
[345000230,1733916640050,-500.0,0.00029863,7]
[345000231,1733916640059,-500.0,0.00029863,7]
[345000232,1733916640070,-502.65638944,0.00029863,7]
[345000233,1733916640079,-500.0,0.00029863,7]
[345000234,1733916640089,-500.0,0.00029863,7]
[345000235,1733916640099,-625.07234563,0.00029863,7]
[345000236,1733916640108,-500.0,0.00029863,7]
[345000237,1733916640118,-500.0,0.00029863,7]
[345000238,1733916640128,-500.0,0.00029863,7]
[345000239,1733916640138,-502.36786243,0.00029863,7]
[345000240,1733916640147,-500.0,0.00029863,7]
[345000241,1733916640157,-500.0,0.00029863,7]
[345000242,1733916640166,-480.34669901,0.00029863,7]
[345000243,1733916640176,-585.06441287,0.00029863,7]
[345000244,1733916640185,-500.0,0.00029863,7]
[345000245,1733916640195,-154.24,0.00029863,7]
[345000246,1733916640204,-500.0,0.00029863,7]
[345000247,1733916640214,-500.0,0.00029863,7]
[345000248,1733916640223,-554.83598038,0.00029863,7]
[345000249,1733916640233,-510.85775461,0.00029863,7]
[345000250,1733916640243,-503.12244421,0.00029863,7]
[345000251,1733916640252,-500.0,0.00029863,7]
[345000252,1733916640263,-505.02515541,0.00029863,7]
[345000253,1733916640272,-500.0,0.00029863,7]
[345000254,1733916640281,-501.77735853,0.00029863,7]
[345000255,1733916640292,-370.70294459,0.00029863,7]
[345000256,1733916640301,-501.62895876,0.00029863,7]
[345000257,1733916640311,-500.0,0.00029863,7]
[345000258,1733916640320,-500.0,0.00029863,7]
[345000259,1733916640329,-504.09375412,0.00029863,7]
[345000260,1733916640339,-507.53055701,0.00029863,7]
[345000261,1733916640348,-500.0,0.00029863,7]
[345000262,1733916640357,-504.50751221,0.00029863,7]
[345000263,1733916640367,-500.0,0.00029863,7]
[345000264,1733916640377,-500.0,0.00029863,7]
[345000265,1733916640386,-500.0,0.00029863,7]
[345000266,1733916640395,-500.0,0.00029863,7]
[345000267,1733916640404,-502.53970196,0.00029863,7]
[345000268,1733916640413,-501.82003512,0.00029863,7]
[345000269,1733916640422,-200.0,0.00029863,7]
[345000270,1733916640431,-489.55550035,0.00029863,7]
[345000271,1733916640441,-500.0,0.00029863,7]
[345000272,1733916640450,-500.0,0.00029863,7]
[345000273,1733916640459,-500.0,0.00029863,7]
[345000274,1733916640468,-500.0,0.00029863,7]
[345000275,1733916640477,-500.0,0.00029863,7]
[345000276,1733916640487,-500.0,0.00029863,7]
[345000277,1733916640496,-500.0,0.00029863,7]
[345000278,1733916640505,-500.0,0.00029863,7]
[345000279,1733916640514,-500.0,0.00029863,7]
[345000280,1733916640523,-500.0,0.00029863,7]
[345000281,1733916640532,-500.0,0.00029863,7]
[345000282,1733916640542,-500.0,0.00029863,7]
[345000283,1733916640551,-261.40230322,0.00029863,7]
[345000284,1733916640560,-500.0,0.00029863,7]
[345000285,1733916640569,-492.8240252,0.00029863,7]
[345000286,1733916640578,-500.0,0.00029863,7]
[345000287,1733916640587,-499.68838205,0.00029863,7]
[345000288,1733916640596,-343.02398495,0.00029863,7]
[345000289,1733916640605,-207.51005473,0.00029863,7]
[345000290,1733916640615,-500.0,0.00029863,7]
[345000291,1733916640624,-256.36038494,0.00029863,7]
[345000292,1733916640633,-500.0,0.00029863,7]
[345000293,1733916640643,-513.34036117,0.00029863,7]
[345000294,1733916640652,-500.0,0.00029863,7]
[345000295,1733916640662,-505.39586088,0.00029863,7]
[345000296,1733916640671,-500.0,0.00029863,7]
[345000297,1733916640681,-500.0,0.00029863,7]
[345000298,1733916640690,-500.0,0.00029863,7]
[345000299,1733916640699,-580.39697325,0.00029863,7]
[345000300,1733916640708,-500.0,0.00029863,7]
[345000301,1733916640717,-500.0,0.00029863,7]
[345000302,1733916640727,-500.0,0.00029863,7]
[345000303,1733916640736,-500.0,0.00029863,7]
[345000304,1733916640746,-500.0,0.00029863,7]
[345000305,1733916640755,-500.0,0.00029863,7]
[345000306,1733916640764,-561.31445378,0.00029863,7]
[345000307,1733916640773,-500.0,0.00029863,7]
[345000308,1733916640783,-500.0,0.00029863,7]
[345000309,1733916640792,-500.0,0.00029863,7]
[345000310,1733916640802,-500.0,0.00029863,7]
[345000311,1733916640811,-500.0,0.00029863,7]
[345000312,1733916640820,-503.03156519,0.00029863,7]
[345000313,1733916640830,-500.0,0.00029863,7]
[345000314,1733916640839,-500.0,0.00029863,7]
[345000315,1733916640848,-500.0,0.00029863,7]
[345000316,1733916640858,-500.0,0.00029863,7]
[345000317,1733916640867,-500.0,0.00029863,7]
[345000318,1733916640877,-500.0,0.00029863,7]
[345000319,1733916640887,-500.0,0.00029863,7]
[345000320,1733916640896,-500.0,0.00029863,7]
[345000321,1733916640905,-500.0,0.00029863,7]
[345000322,1733916640914,-204.09,0.00029863,7]
[345000323,1733916640924,-500.0,0.00029863,7]
[345000324,1733916640933,-500.0,0.00029863,7]
[345000325,1733916640943,-503.48007258,0.00029863,7]
[345000326,1733916640954,-500.0,0.00029863,7]
[345000327,1733916640963,-168.8203895,0.00029863,7]
[345000328,1733916640973,-500.0,0.00029863,7]
[345000329,1733916640986,-430.02438587,0.00029863,7]
[345000330,1733916640996,-500.0,0.00029863,7]
[345000331,1733916641005,-500.0,0.00029863,7]
[345000332,1733916641015,-500.0,0.00029863,7]
[345000333,1733916641025,-500.0,0.00029863,7]
[345000334,1733916641034,-519.16459556,0.00029863,7]
[345000335,1733916641045,-500.0,0.00029863,7]
[345000336,1733916641135,-500.0,0.00029863,7]
[345000337,1733916641156,-317.00836832,0.00029863,7]
[345000338,1733916641165,-500.0,0.00029863,7]
[345000339,1733916641175,-500.0,0.00029863,7]
[345000340,1733916641184,-500.0,0.00029863,7]
[345000341,1733916641193,-500.0,0.00029863,7]
[345000342,1733916641203,-500.0,0.00029863,7]
[345000343,1733916641212,-420.05190738,0.00029863,7]
[345000344,1733916641222,-500.0,0.00029863,7]
[345000345,1733916641231,-500.0,0.00029863,7]
[345000346,1733916641240,-500.0,0.00029863,7]
[345000347,1733916641250,-500.0,0.00029863,7]
[345000348,1733916641259,-500.0,0.00029863,7]
[345000349,1733916641269,-504.0404011,0.00029863,7]
[345000350,1733916641280,-500.0,0.00029863,7]
[345000351,1733916641288,-500.0,0.00029863,7]
[345000352,1733916641299,-500.0,0.00029863,7]
[345000353,1733916641308,-500.0,0.00029863,7]
[345000354,1733916641317,-500.0,0.00029863,7]
[345000355,1733916641326,-500.0,0.00029863,7]
[345000356,1733916641335,-500.0,0.00029863,7]
[345000357,1733916641345,-500.0,0.00029863,7]
[345000358,1733916641356,-500.0,0.00029863,7]
[345000359,1733916641366,-500.0,0.00029863,7]
[345000360,1733916641375,-440.66139914,0.00029863,7]
[345000361,1733916641384,-500.0,0.00029863,7]
[345000362,1733916641393,-500.0,0.00029863,7]
[345000363,1733916641402,-500.0,0.00029863,7]
[345000364,1733916641411,-500.0,0.00029863,7]
[345000365,1733916641420,-462.37280251,0.00029863,7]
[345000366,1733916641429,-500.0,0.00029863,7]
[345000367,1733916641438,-500.0,0.00029863,7]
[345000368,1733916641447,-500.0,0.00029863,7]
[345000369,1733916641457,-500.0,0.00029863,7]